[Event "*** Titled Tuesday Blitz"]
[Site "Chess.com"]
[Date "2020.04.28"]
[Round "4"]
[White "1Przemyslaw1"]
[Black "levallem"]
[Result "1-0"]
[WhiteElo "2407"]
[BlackElo "2211"]
[TimeControl "180+1"]
[EndTime "10:40:23 PDT"]
[Termination "1Przemyslaw1 won by resignation"]

1. Nf3 {[%clk 0:03:00.9]} 1... d5 {[%clk 0:02:58.6]} 2. d4 {[%clk 0:03:00.4]}
2... Nf6 {[%clk 0:02:58]} 3. c4 {[%clk 0:02:59.4]} 3... c6 {[%clk 0:02:57.7]} 4.
Qc2 {[%clk 0:02:56.9]} 4... e6 {[%clk 0:02:56.1]} 5. g3 {[%clk 0:02:53.7]} 5...
Nbd7 {[%clk 0:02:56.2]} 6. Bg2 {[%clk 0:02:53.5]} 6... b6 {[%clk 0:02:53.5]} 7.
O-O {[%clk 0:02:53.1]} 7... Bb7 {[%clk 0:02:53.9]} 8. Rd1 {[%clk 0:02:50]} 8...
Ne4 {[%clk 0:02:53.8]} 9. b3 {[%clk 0:02:46.5]} 9... f5 {[%clk 0:02:53]} 10. Ba3
{[%clk 0:02:26.5]} 10... Bxa3 {[%clk 0:02:48.6]} 11. Nxa3 {[%clk 0:02:26.5]}
11... O-O {[%clk 0:02:49.2]} 12. Rac1 {[%clk 0:02:23.1]} 12... Rc8 {[%clk
0:02:46.5]} 13. Qb2 {[%clk 0:02:14.2]} 13... f4 {[%clk 0:02:46.3]} 14. Nb1
{[%clk 0:02:07.6]} 14... fxg3 {[%clk 0:02:42]} 15. hxg3 {[%clk 0:02:06.7]} 15...
Ndf6 {[%clk 0:02:28.6]} 16. Rf1 {[%clk 0:02:00.8]} 16... Ng4 {[%clk 0:02:26.2]}
17. Nbd2 {[%clk 0:01:57.8]} 17... c5 {[%clk 0:02:02.6]} 18. Nxe4 {[%clk
0:01:46.1]} 18... dxe4 {[%clk 0:02:03.5]} 19. Ne5 {[%clk 0:01:45.8]} 19... Nxe5
{[%clk 0:01:02.1]} 20. dxe5 {[%clk 0:01:44.3]} 20... Qc7 {[%clk 0:01:02.3]} 21.
Rcd1 {[%clk 0:01:26.1]} 21... Rcd8 {[%clk 0:00:56.5]} 22. Qc3 {[%clk 0:01:18.4]}
22... Rxd1 {[%clk 0:00:51.5]} 23. Rxd1 {[%clk 0:01:18.1]} 23... Rf5 {[%clk
0:00:52]} 24. Rd6 {[%clk 0:01:15.1]} 24... h5 {[%clk 0:00:43.7]} 25. Bh3 {[%clk
0:01:13.5]} 25... Rg5 {[%clk 0:00:34.4]} 26. Bxe6+ {[%clk 0:01:08.1]} 26... Kh7
{[%clk 0:00:34.3]} 27. Rd7 {[%clk 0:00:39.9]} 27... Qc6 {[%clk 0:00:30.8]} 28.
Qd2 {[%clk 0:00:39.5]} 28... Rxe5 {[%clk 0:00:22.3]} 29. Bd5 {[%clk 0:00:36.9]}
29... Qxd7 {[%clk 0:00:10.3]} 30. Bg8+ {[%clk 0:00:35.6]} 30... Kxg8 {[%clk
0:00:09.8]} 31. Qxd7 {[%clk 0:00:35.6]} 31... e3 {[%clk 0:00:08.8]} 32. Qxb7
{[%clk 0:00:33.9]} 32... exf2+ {[%clk 0:00:08.9]} 33. Kxf2 {[%clk 0:00:34.1]}
33... Rf5+ {[%clk 0:00:09.3]} 34. Kg2 {[%clk 0:00:31.8]} 34... Rf6 {[%clk
0:00:09.4]} 35. Qxa7 {[%clk 0:00:31.4]} 35... Rg6 {[%clk 0:00:09.6]} 36. Kh3
{[%clk 0:00:29.7]} 36... Kh7 {[%clk 0:00:08.9]} 37. a4 {[%clk 0:00:29]} 37...
Re6 {[%clk 0:00:09]} 38. a5 {[%clk 0:00:27.5]} 38... bxa5 {[%clk 0:00:09.5]} 39.
Qxc5 {[%clk 0:00:27.3]} 39... Rxe2 {[%clk 0:00:09.6]} 40. Qxh5+ {[%clk
0:00:26.6]} 40... Kg8 {[%clk 0:00:09.6]} 41. Qxe2 {[%clk 0:00:26.5]} 1-0

[Event "*** Titled Tuesday Blitz"]
[Site "Chess.com"]
[Date "2020.04.28"]
[Round "4"]
[White "Schachmalanders"]
[Black "szefru"]
[Result "1-0"]
[WhiteElo "2326"]
[BlackElo "2116"]
[TimeControl "180+1"]
[EndTime "10:40:25 PDT"]
[Termination "Schachmalanders won by resignation"]

1. e4 {[%clk 0:03:00.9]} 1... Nf6 {[%clk 0:02:59.2]} 2. e5 {[%clk 0:03:01.1]}
2... Nd5 {[%clk 0:02:59.4]} 3. d4 {[%clk 0:03:01.9]} 3... d6 {[%clk 0:02:59.6]}
4. c4 {[%clk 0:03:02.8]} 4... Nb6 {[%clk 0:02:59.4]} 5. exd6 {[%clk 0:03:03.7]}
5... exd6 {[%clk 0:03:00.2]} 6. Bd3 {[%clk 0:03:02.8]} 6... Be7 {[%clk
0:03:00.8]} 7. Ne2 {[%clk 0:03:02.9]} 7... O-O {[%clk 0:03:01.4]} 8. O-O {[%clk
0:03:03]} 8... Bf6 {[%clk 0:03:01.9]} 9. Nbc3 {[%clk 0:03:02.5]} 9... Nc6 {[%clk
0:03:01.3]} 10. Be3 {[%clk 0:03:02.1]} 10... Bg4 {[%clk 0:02:59.6]} 11. f3
{[%clk 0:03:02]} 11... Bh5 {[%clk 0:02:59.7]} 12. b3 {[%clk 0:03:01.5]} 12...
Bg6 {[%clk 0:02:59.8]} 13. Rc1 {[%clk 0:03:00.4]} 13... Re8 {[%clk 0:02:58.6]}
14. Bf2 {[%clk 0:02:59.9]} 14... Bxd3 {[%clk 0:02:51.5]} 15. Qxd3 {[%clk
0:02:58.9]} 15... Nb4 {[%clk 0:02:51.7]} 16. Qd2 {[%clk 0:02:55.4]} 16... a5
{[%clk 0:02:49.6]} 17. Ng3 {[%clk 0:02:48.5]} 17... g6 {[%clk 0:02:46.1]} 18. a3
{[%clk 0:02:41.3]} 18... Nc6 {[%clk 0:02:24.9]} 19. Rfe1 {[%clk 0:02:37.8]}
19... Qd7 {[%clk 0:02:20.6]} 20. Nb5 {[%clk 0:02:22.8]} 20... Rxe1+ {[%clk
0:01:57.7]} 21. Rxe1 {[%clk 0:02:21.6]} 21... a4 {[%clk 0:01:58.1]} 22. Ne4
{[%clk 0:01:54.9]} 22... Bg7 {[%clk 0:01:56.5]} 23. c5 {[%clk 0:01:55.1]} 23...
dxc5 {[%clk 0:01:31.7]} 24. Nxc5 {[%clk 0:01:54]} 24... Qc8 {[%clk 0:01:25.7]}
25. b4 {[%clk 0:01:44.2]} 25... Nc4 {[%clk 0:01:24.5]} 26. Qd3 {[%clk
0:01:40.4]} 26... Nd6 {[%clk 0:01:20.5]} 27. h3 {[%clk 0:01:16.1]} 27... Nxb5
{[%clk 0:01:16.9]} 28. Qxb5 {[%clk 0:01:16.4]} 28... Nxd4 {[%clk 0:01:17.1]} 29.
Qc4 {[%clk 0:00:59.1]} 29... Nf5 {[%clk 0:01:10.6]} 30. Rd1 {[%clk 0:00:46.8]}
30... Nd6 {[%clk 0:01:09.7]} 31. Qc2 {[%clk 0:00:45.3]} 31... b6 {[%clk
0:01:04.1]} 32. Ne4 {[%clk 0:00:41.1]} 32... Qf5 {[%clk 0:00:56.3]} 33. Qc6
{[%clk 0:00:40.7]} 33... Rd8 {[%clk 0:00:45.7]} 34. Qxa4 {[%clk 0:00:34.2]}
34... Be5 {[%clk 0:00:34.2]} 35. Qc6 {[%clk 0:00:30.9]} 35... Rf8 {[%clk
0:00:18.4]} 36. Nxd6 {[%clk 0:00:20]} 36... Bxd6 {[%clk 0:00:19.3]} 37. Qe4
{[%clk 0:00:17.7]} 37... Qf6 {[%clk 0:00:19]} 38. Bd4 {[%clk 0:00:16.5]} 38...
Qg5 {[%clk 0:00:18.1]} 39. Bb2 {[%clk 0:00:12.8]} 39... Qg4 {[%clk 0:00:18.3]}
40. hxg4 {[%clk 0:00:12.3]} 1-0

[Event "*** Titled Tuesday Blitz"]
[Site "Chess.com"]
[Date "2020.04.28"]
[Round "4"]
[White "Shoytan"]
[Black "Zkid"]
[Result "0-1"]
[WhiteElo "2588"]
[BlackElo "2805"]
[TimeControl "180+1"]
[EndTime "10:40:26 PDT"]
[Termination "Zkid won by resignation"]

1. e4 {[%clk 0:02:50.2]} 1... e6 {[%clk 0:02:59.1]} 2. d4 {[%clk 0:02:50]} 2...
d5 {[%clk 0:02:59.7]} 3. Nc3 {[%clk 0:02:50.1]} 3... Bb4 {[%clk 0:02:59.5]} 4.
e5 {[%clk 0:02:48.8]} 4... c5 {[%clk 0:03:00.1]} 5. a3 {[%clk 0:02:49.3]} 5...
Bxc3+ {[%clk 0:03:00.7]} 6. bxc3 {[%clk 0:02:50]} 6... Qa5 {[%clk 0:03:01.4]} 7.
Bd2 {[%clk 0:02:49.5]} 7... Qa4 {[%clk 0:03:01.9]} 8. Nf3 {[%clk 0:02:49.6]}
8... b6 {[%clk 0:03:00.6]} 9. Bd3 {[%clk 0:02:39.7]} 9... Ba6 {[%clk 0:02:59.2]}
10. O-O {[%clk 0:02:39.4]} 10... Bxd3 {[%clk 0:02:58.9]} 11. cxd3 {[%clk
0:02:39.3]} 11... Qxd1 {[%clk 0:02:59.8]} 12. Rfxd1 {[%clk 0:02:38.6]} 12... Nd7
{[%clk 0:03:00.4]} 13. dxc5 {[%clk 0:02:37]} 13... Nxc5 {[%clk 0:03:00]} 14. Be3
{[%clk 0:02:36.5]} 14... Nd7 {[%clk 0:02:50.5]} 15. a4 {[%clk 0:02:35.2]} 15...
Ne7 {[%clk 0:02:48.8]} 16. a5 {[%clk 0:02:34.3]} 16... b5 {[%clk 0:02:37]} 17.
a6 {[%clk 0:02:25.8]} 17... O-O {[%clk 0:02:34.2]} 18. Rdb1 {[%clk 0:02:18.9]}
18... Rfb8 {[%clk 0:02:32.3]} 19. Nd4 {[%clk 0:02:16.4]} 19... b4 {[%clk
0:02:20.2]} 20. Rxb4 {[%clk 0:02:04.7]} 20... Rxb4 {[%clk 0:02:09.9]} 21. cxb4
{[%clk 0:02:05.6]} 21... Nxe5 {[%clk 0:02:09.9]} 22. Nb5 {[%clk 0:01:56.3]}
22... N7c6 {[%clk 0:02:03.9]} 23. Ra3 {[%clk 0:01:32]} 23... Nxb4 {[%clk
0:01:58.7]} 24. Bxa7 {[%clk 0:01:27.3]} 24... Nexd3 {[%clk 0:01:45.9]} 25. Be3
{[%clk 0:01:21.5]} 25... Rxa6 {[%clk 0:01:44.3]} 26. Rxa6 {[%clk 0:01:18.1]}
26... Nxa6 {[%clk 0:01:45.2]} 27. Kf1 {[%clk 0:01:18.6]} 27... e5 {[%clk
0:01:41.6]} 28. Ke2 {[%clk 0:01:17.1]} 28... Ndc5 {[%clk 0:01:36.7]} 29. f4
{[%clk 0:01:16.6]} 29... f6 {[%clk 0:01:36]} 30. Nd6 {[%clk 0:01:08.7]} 30... d4
{[%clk 0:01:32.4]} 31. Bf2 {[%clk 0:01:05.2]} 31... Nb4 {[%clk 0:01:23.1]} 32.
g4 {[%clk 0:01:00.9]} 32... d3+ {[%clk 0:01:15.4]} 33. Kd1 {[%clk 0:01:00.3]}
33... Nb3 {[%clk 0:01:10.7]} 34. fxe5 {[%clk 0:00:57.6]} 34... fxe5 {[%clk
0:01:11]} 35. Ne4 {[%clk 0:00:56.3]} 35... Nd5 {[%clk 0:01:07.7]} 36. h3 {[%clk
0:00:44.3]} 36... Kf7 {[%clk 0:01:03.5]} 37. Bg3 {[%clk 0:00:38.6]} 37... Ne3+
{[%clk 0:01:02.2]} 38. Ke1 {[%clk 0:00:38.6]} 38... Nc4 {[%clk 0:01:02.7]} 39.
Kd1 {[%clk 0:00:28.8]} 39... Ke6 {[%clk 0:00:58.6]} 40. Bf2 {[%clk 0:00:21.9]}
40... Nd6 {[%clk 0:00:51.4]} 41. Nc3 {[%clk 0:00:18.5]} 41... Nc4 {[%clk
0:00:46]} 42. Ne4 {[%clk 0:00:16.9]} 42... Kd5 {[%clk 0:00:45]} 43. Nc3+ {[%clk
0:00:16.6]} 43... Kc6 {[%clk 0:00:45]} 44. Ne4 {[%clk 0:00:14.9]} 44... Nd6
{[%clk 0:00:40.9]} 45. Nc3 {[%clk 0:00:14.6]} 45... Nb5 {[%clk 0:00:41.5]} 46.
Ne4 {[%clk 0:00:13.2]} 46... Kd5 {[%clk 0:00:40.3]} 47. Nd2 {[%clk 0:00:12.4]}
47... Nc3+ {[%clk 0:00:39.1]} 48. Ke1 {[%clk 0:00:12.1]} 48... Nxd2 {[%clk
0:00:40]} 49. Kxd2 {[%clk 0:00:12.9]} 49... Ne4+ {[%clk 0:00:40.9]} 50. Kxd3
{[%clk 0:00:13.5]} 50... Nxf2+ {[%clk 0:00:41.8]} 51. Ke3 {[%clk 0:00:14.4]}
51... Nxh3 {[%clk 0:00:42.1]} 0-1

[Event "*** Titled Tuesday Blitz"]
[Site "Chess.com"]
[Date "2020.04.28"]
[Round "4"]
[White "doctorcristian"]
[Black "NIGWAPO"]
[Result "1/2-1/2"]
[WhiteElo "2335"]
[BlackElo "2593"]
[TimeControl "180+1"]
[EndTime "10:40:27 PDT"]
[Termination "Game drawn - insufficient material"]

1. d4 {[%clk 0:03:00.9]} 1... Nf6 {[%clk 0:02:59.7]} 2. Nc3 {[%clk 0:03:00.8]}
2... d5 {[%clk 0:02:59.2]} 3. Bf4 {[%clk 0:03:01]} 3... Bf5 {[%clk 0:02:58.5]}
4. f3 {[%clk 0:03:00.1]} 4... e6 {[%clk 0:02:58.2]} 5. g4 {[%clk 0:02:59.8]}
5... Bg6 {[%clk 0:02:58]} 6. h4 {[%clk 0:02:58.9]} 6... h5 {[%clk 0:02:58.2]} 7.
g5 {[%clk 0:02:58.7]} 7... Nfd7 {[%clk 0:02:58.6]} 8. e3 {[%clk 0:02:58.6]} 8...
c5 {[%clk 0:02:56.7]} 9. Nb5 {[%clk 0:02:55]} 9... Na6 {[%clk 0:02:54.7]} 10. c3
{[%clk 0:02:54.5]} 10... Qb6 {[%clk 0:02:51.6]} 11. Bd3 {[%clk 0:02:48.6]} 11...
c4 {[%clk 0:02:50.2]} 12. Bxg6 {[%clk 0:02:47.7]} 12... Qxb5 {[%clk 0:02:50.5]}
13. Bc2 {[%clk 0:02:41]} 13... Qxb2 {[%clk 0:02:49.7]} 14. Ne2 {[%clk
0:02:38.7]} 14... Qa3 {[%clk 0:02:49.6]} 15. g6 {[%clk 0:02:35.8]} 15... f6
{[%clk 0:02:48.7]} 16. e4 {[%clk 0:02:26.5]} 16... Bd6 {[%clk 0:02:48.1]} 17.
exd5 {[%clk 0:02:23.6]} 17... exd5 {[%clk 0:02:44.8]} 18. Qd2 {[%clk 0:02:20.1]}
18... O-O-O {[%clk 0:02:42.8]} 19. O-O {[%clk 0:02:18.5]} 19... Rhe8 {[%clk
0:02:41]} 20. Ng3 {[%clk 0:02:12.7]} 20... Bxf4 {[%clk 0:02:39.1]} 21. Qxf4
{[%clk 0:02:12.1]} 21... Qxc3 {[%clk 0:02:39.6]} 22. Bf5 {[%clk 0:02:11.3]}
22... Qe3+ {[%clk 0:02:37.9]} 23. Qxe3 {[%clk 0:02:11.2]} 23... Rxe3 {[%clk
0:02:38.4]} 24. Nxh5 {[%clk 0:02:11]} 24... Re7 {[%clk 0:02:36.6]} 25. Rfe1
{[%clk 0:02:10]} 25... Rde8 {[%clk 0:02:36.6]} 26. Kf2 {[%clk 0:02:08.6]} 26...
Kd8 {[%clk 0:02:35.1]} 27. Nf4 {[%clk 0:02:02.1]} 27... Nc7 {[%clk 0:02:34.3]}
28. h5 {[%clk 0:02:00.9]} 28... Nf8 {[%clk 0:02:27]} 29. a4 {[%clk 0:01:46.7]}
29... b6 {[%clk 0:02:21.4]} 30. Rxe7 {[%clk 0:01:43.7]} 30... Rxe7 {[%clk
0:02:21.2]} 31. Rg1 {[%clk 0:01:43.7]} 31... Nce6 {[%clk 0:02:06.7]} 32. Nxd5
{[%clk 0:01:32.7]} 32... Rd7 {[%clk 0:02:04.7]} 33. Bxe6 {[%clk 0:01:26.9]}
33... Nxe6 {[%clk 0:02:04.1]} 34. Nxf6 {[%clk 0:01:25.7]} 34... Rxd4 {[%clk
0:01:59.4]} 35. Ne4 {[%clk 0:01:20.9]} 35... Rd7 {[%clk 0:01:49.7]} 36. Ng5
{[%clk 0:01:10.4]} 36... Nf4 {[%clk 0:01:44.7]} 37. Rg4 {[%clk 0:01:07.8]} 37...
Nd3+ {[%clk 0:01:29.2]} 38. Ke3 {[%clk 0:01:06.8]} 38... Ne5 {[%clk 0:01:27.1]}
39. Rd4 {[%clk 0:01:05.4]} 39... c3 {[%clk 0:01:23.3]} 40. Rxd7+ {[%clk
0:01:02.7]} 40... Kxd7 {[%clk 0:01:22.1]} 41. f4 {[%clk 0:01:02]} 41... Ng4+
{[%clk 0:01:15.3]} 42. Kd3 {[%clk 0:00:59.5]} 42... Nf6 {[%clk 0:01:15.2]} 43.
h6 {[%clk 0:00:55.4]} 43... gxh6 {[%clk 0:01:14.8]} 44. Nh7 {[%clk 0:00:54.6]}
44... Ke6 {[%clk 0:01:02.5]} 45. Kxc3 {[%clk 0:00:52.4]} 45... h5 {[%clk
0:00:58.7]} 46. Ng5+ {[%clk 0:00:51]} 46... Kf5 {[%clk 0:00:56.9]} 47. g7 {[%clk
0:00:47.1]} 47... Kxf4 {[%clk 0:00:55]} 48. Nh7 {[%clk 0:00:43.7]} 48... Ng8
{[%clk 0:00:54]} 49. Nf8 {[%clk 0:00:43]} 49... h4 {[%clk 0:00:52]} 50. Ng6+
{[%clk 0:00:41.6]} 50... Kg5 {[%clk 0:00:52.2]} 51. Nxh4 {[%clk 0:00:41.4]}
51... Kxh4 {[%clk 0:00:52.4]} 52. Kc4 {[%clk 0:00:42.1]} 52... Kg5 {[%clk
0:00:52.4]} 53. Kb5 {[%clk 0:00:41.7]} 53... Kf6 {[%clk 0:00:52.9]} 54. a5
{[%clk 0:00:41.1]} 54... Kxg7 {[%clk 0:00:51.3]} 55. axb6 {[%clk 0:00:39.6]}
55... axb6 {[%clk 0:00:52.2]} 56. Kxb6 {[%clk 0:00:39.3]} 1/2-1/2

[Event "*** Titled Tuesday Blitz"]
[Site "Chess.com"]
[Date "2020.04.28"]
[Round "4"]
[White "VqquyenCFT"]
[Black "djogrodek1"]
[Result "1-0"]
[WhiteElo "2228"]
[BlackElo "2559"]
[TimeControl "180+1"]
[EndTime "10:40:28 PDT"]
[Termination "VqquyenCFT won by resignation"]

1. e4 {[%clk 0:03:00.9]} 1... c5 {[%clk 0:02:53.3]} 2. Nf3 {[%clk 0:02:58.8]}
2... e6 {[%clk 0:02:53.7]} 3. c3 {[%clk 0:02:58.7]} 3... Nf6 {[%clk 0:02:53.2]}
4. e5 {[%clk 0:02:58.7]} 4... Nd5 {[%clk 0:02:53.7]} 5. Bc4 {[%clk 0:02:58.9]}
5... d6 {[%clk 0:02:52.6]} 6. d4 {[%clk 0:02:58.6]} 6... cxd4 {[%clk 0:02:52.5]}
7. cxd4 {[%clk 0:02:58.5]} 7... Nc6 {[%clk 0:02:52.7]} 8. O-O {[%clk 0:02:57.3]}
8... Be7 {[%clk 0:02:52.9]} 9. Qe2 {[%clk 0:02:56.6]} 9... O-O {[%clk
0:02:52.9]} 10. Re1 {[%clk 0:02:49.3]} 10... b6 {[%clk 0:02:33.9]} 11. a3 {[%clk
0:02:43]} 11... Bb7 {[%clk 0:02:31.2]} 12. Bxd5 {[%clk 0:02:29.1]} 12... exd5
{[%clk 0:02:32.1]} 13. Nc3 {[%clk 0:02:29.2]} 13... Na5 {[%clk 0:02:27.5]} 14.
e6 {[%clk 0:02:24.8]} 14... Rc8 {[%clk 0:02:01]} 15. Bf4 {[%clk 0:02:18.7]}
15... Kh8 {[%clk 0:01:50.5]} 16. Bg3 {[%clk 0:02:14.5]} 16... Nc4 {[%clk
0:01:39.7]} 17. exf7 {[%clk 0:02:05.7]} 17... Rxf7 {[%clk 0:01:38.2]} 18. Qe6
{[%clk 0:02:04.7]} 18... Qf8 {[%clk 0:01:24]} 19. Re2 {[%clk 0:02:01.7]} 19...
Nxb2 {[%clk 0:00:51.4]} 20. Nxd5 {[%clk 0:01:56.8]} 20... Bxd5 {[%clk
0:00:52.3]} 21. Qxd5 {[%clk 0:01:56.8]} 21... Nd3 {[%clk 0:00:51.2]} 22. Qe4
{[%clk 0:01:48.1]} 22... Rc3 {[%clk 0:00:46.4]} 23. Rd1 {[%clk 0:01:46.8]} 23...
Nc1 {[%clk 0:00:44]} 24. Re3 {[%clk 0:01:45]} 24... d5 {[%clk 0:00:25.9]} 25.
Qe6 {[%clk 0:01:36.4]} 25... Rc8 {[%clk 0:00:15.7]} 26. Ne5 {[%clk 0:01:26.4]}
26... Rf6 {[%clk 0:00:16]} 27. Qxd5 {[%clk 0:01:22.8]} 27... Bxa3 {[%clk
0:00:14.5]} 28. Nd7 {[%clk 0:01:21.6]} 28... Qd8 {[%clk 0:00:12.2]} 29. Nxf6
{[%clk 0:01:21.3]} 29... Qxf6 {[%clk 0:00:13.1]} 30. Be5 {[%clk 0:01:19.6]}
30... Qg6 {[%clk 0:00:10.9]} 31. Rg3 {[%clk 0:01:18.9]} 31... Ne2+ {[%clk
0:00:11.1]} 32. Kf1 {[%clk 0:01:13.2]} 32... Nxg3+ {[%clk 0:00:12]} 33. hxg3
{[%clk 0:01:13.4]} 33... Rf8 {[%clk 0:00:12.2]} 34. Kg1 {[%clk 0:01:00.2]} 34...
Be7 {[%clk 0:00:09.7]} 35. Qd7 {[%clk 0:00:54.4]} 35... Bf6 {[%clk 0:00:09.7]}
36. Qxa7 {[%clk 0:00:53.8]} 36... Qc2 {[%clk 0:00:08.9]} 37. Rf1 {[%clk
0:00:53.1]} 37... Bxe5 {[%clk 0:00:08]} 38. dxe5 {[%clk 0:00:53.4]} 38... Qc5
{[%clk 0:00:08.9]} 39. e6 {[%clk 0:00:53.1]} 39... Re8 {[%clk 0:00:09.1]} 40.
Qd7 {[%clk 0:00:51.1]} 40... Qe7 {[%clk 0:00:08.6]} 41. Rc1 {[%clk 0:00:44.2]}
41... g6 {[%clk 0:00:06.1]} 42. Rc7 {[%clk 0:00:36.7]} 42... Qxd7 {[%clk
0:00:05.1]} 43. exd7 {[%clk 0:00:36.4]} 43... Re1+ {[%clk 0:00:05.3]} 44. Kh2
{[%clk 0:00:36.6]} 44... Kg7 {[%clk 0:00:05.3]} 45. d8=Q+ {[%clk 0:00:34.7]}
45... Kh6 {[%clk 0:00:06.2]} 1-0

[Event "*** Titled Tuesday Blitz"]
[Site "Chess.com"]
[Date "2020.04.28"]
[Round "4"]
[White "tsvet2005"]
[Black "vugarrasulov"]
[Result "0-1"]
[WhiteElo "2511"]
[BlackElo "2761"]
[TimeControl "180+1"]
[EndTime "10:40:30 PDT"]
[Termination "vugarrasulov won by resignation"]

1. d4 {[%clk 0:03:00.9]} 1... Nf6 {[%clk 0:02:59.2]} 2. c4 {[%clk 0:03:01.4]}
2... c5 {[%clk 0:02:56.6]} 3. d5 {[%clk 0:03:01.3]} 3... e6 {[%clk 0:02:56.8]}
4. Nc3 {[%clk 0:03:00.9]} 4... exd5 {[%clk 0:02:57.2]} 5. cxd5 {[%clk
0:03:01.8]} 5... Bd6 {[%clk 0:02:57.7]} 6. Nf3 {[%clk 0:02:57.6]} 6... O-O
{[%clk 0:02:58.2]} 7. g3 {[%clk 0:02:57.8]} 7... Bc7 {[%clk 0:02:58.4]} 8. d6
{[%clk 0:02:57.6]} 8... Ba5 {[%clk 0:02:58.4]} 9. Bg2 {[%clk 0:02:58.1]} 9...
Ne4 {[%clk 0:02:57.9]} 10. O-O {[%clk 0:02:55.5]} 10... Nxc3 {[%clk 0:02:54.9]}
11. bxc3 {[%clk 0:02:56.4]} 11... Bxc3 {[%clk 0:02:55.5]} 12. Rb1 {[%clk
0:02:56.8]} 12... Nc6 {[%clk 0:02:55.7]} 13. Qd3 {[%clk 0:02:49.2]} 13... Bf6
{[%clk 0:02:55.1]} 14. e4 {[%clk 0:02:40.7]} 14... Re8 {[%clk 0:02:48.5]} 15.
Re1 {[%clk 0:02:38.8]} 15... Ne5 {[%clk 0:02:44.4]} 16. Nxe5 {[%clk 0:02:35.4]}
16... Bxe5 {[%clk 0:02:45.3]} 17. Be3 {[%clk 0:02:32.3]} 17... Qf6 {[%clk
0:02:18.8]} 18. Bxc5 {[%clk 0:02:13]} 18... b6 {[%clk 0:02:16.9]} 19. Ba3 {[%clk
0:02:10.4]} 19... Bb7 {[%clk 0:02:16.2]} 20. Rbd1 {[%clk 0:02:04.8]} 20... Rac8
{[%clk 0:02:03.6]} 21. Rc1 {[%clk 0:01:48.2]} 21... g5 {[%clk 0:01:56.8]} 22.
Rc7 {[%clk 0:01:19.9]} 22... Rxc7 {[%clk 0:01:51.4]} 23. dxc7 {[%clk 0:01:20.8]}
23... Bc6 {[%clk 0:01:52]} 24. Qa6 {[%clk 0:00:52]} 24... Bxc7 {[%clk
0:01:51.8]} 25. Qxa7 {[%clk 0:00:51.9]} 25... Be5 {[%clk 0:01:52.4]} 26. Qa6
{[%clk 0:00:41.4]} 26... Bc3 {[%clk 0:01:43.1]} 27. Rc1 {[%clk 0:00:14.7]} 27...
Bd4 {[%clk 0:01:40.5]} 28. Qe2 {[%clk 0:00:10.4]} 28... Qe6 {[%clk 0:01:34.1]}
29. h3 {[%clk 0:00:06.1]} 29... h6 {[%clk 0:01:32.8]} 30. Kh2 {[%clk 0:00:05.7]}
30... Bxe4 {[%clk 0:01:26]} 31. Bxe4 {[%clk 0:00:06]} 31... Qxe4 {[%clk
0:01:26.9]} 32. Qxe4 {[%clk 0:00:04.1]} 32... Rxe4 {[%clk 0:01:27.8]} 33. Rc4
{[%clk 0:00:04.8]} 33... d5 {[%clk 0:01:25.7]} 34. Rb4 {[%clk 0:00:02.6]} 34...
Bxf2 {[%clk 0:01:23.7]} 35. Rxe4 {[%clk 0:00:02.3]} 35... dxe4 {[%clk
0:01:24.6]} 36. Kg2 {[%clk 0:00:03.2]} 36... Bd4 {[%clk 0:01:24.6]} 37. Kf1
{[%clk 0:00:02.5]} 37... f5 {[%clk 0:01:24.6]} 38. Ke2 {[%clk 0:00:03.4]} 38...
Kf7 {[%clk 0:01:25.1]} 39. h4 {[%clk 0:00:03]} 39... Ke6 {[%clk 0:01:25.1]} 40.
hxg5 {[%clk 0:00:03.1]} 40... hxg5 {[%clk 0:01:26]} 41. Bc1 {[%clk 0:00:03.8]}
41... Kf6 {[%clk 0:01:24.5]} 42. a4 {[%clk 0:00:04.7]} 42... Kg6 {[%clk
0:01:23]} 43. Bd2 {[%clk 0:00:04.5]} 43... Kh5 {[%clk 0:01:23.1]} 44. a5 {[%clk
0:00:02.3]} 44... bxa5 {[%clk 0:01:23.3]} 45. Bxa5 {[%clk 0:00:03.2]} 45... Kg4
{[%clk 0:01:24]} 46. Bd8 {[%clk 0:00:03.6]} 46... Be5 {[%clk 0:01:23]} 47. Ke3
{[%clk 0:00:02]} 47... Bxg3 {[%clk 0:01:23.3]} 48. Ba5 {[%clk 0:00:02.8]} 48...
Bf4+ {[%clk 0:01:22]} 49. Ke2 {[%clk 0:00:03.7]} 49... Kg3 {[%clk 0:01:22.3]}
50. Bd8 {[%clk 0:00:04.6]} 50... g4 {[%clk 0:01:22.3]} 51. Bb6 {[%clk
0:00:04.6]} 51... Kh3 {[%clk 0:01:22.4]} 52. Bf2 {[%clk 0:00:05]} 52... g3
{[%clk 0:01:22.4]} 53. Ba7 {[%clk 0:00:05.9]} 53... Kg4 {[%clk 0:01:22.7]} 54.
Kf1 {[%clk 0:00:06.1]} 54... Kf3 {[%clk 0:01:22.3]} 55. Bf2 {[%clk 0:00:07]}
55... g2+ {[%clk 0:01:22]} 56. Kg1 {[%clk 0:00:07.2]} 56... Bh2+ {[%clk
0:01:22.4]} 57. Kxh2 {[%clk 0:00:07.5]} 57... Kxf2 {[%clk 0:01:23.3]} 58. Kh3
{[%clk 0:00:08.4]} 58... g1=Q {[%clk 0:01:23.7]} 59. Kh4 {[%clk 0:00:09.3]} 0-1

[Event "*** Titled Tuesday Blitz"]
[Site "Chess.com"]
[Date "2020.04.28"]
[Round "4"]
[White "AlexOstrovskiy"]
[Black "dbrankovic68"]
[Result "0-1"]
[WhiteElo "2547"]
[BlackElo "2360"]
[TimeControl "180+1"]
[EndTime "10:40:30 PDT"]
[Termination "dbrankovic68 won on time"]

1. d4 {[%clk 0:03:00.9]} 1... Nf6 {[%clk 0:02:59.1]} 2. Bg5 {[%clk 0:02:56]}
2... Ne4 {[%clk 0:02:58.4]} 3. h4 {[%clk 0:02:55]} 3... c5 {[%clk 0:02:56.7]} 4.
d5 {[%clk 0:02:53]} 4... Qb6 {[%clk 0:02:52.4]} 5. Nd2 {[%clk 0:02:52.3]} 5...
Nxd2 {[%clk 0:02:47.8]} 6. Bxd2 {[%clk 0:02:53.2]} 6... d6 {[%clk 0:02:35.1]} 7.
e4 {[%clk 0:02:49.2]} 7... Nd7 {[%clk 0:02:31.4]} 8. Bc3 {[%clk 0:02:48]} 8...
Nf6 {[%clk 0:02:25.3]} 9. f3 {[%clk 0:02:37.1]} 9... e5 {[%clk 0:02:20.2]} 10.
Qd2 {[%clk 0:02:29.3]} 10... Qc7 {[%clk 0:02:15.2]} 11. Ne2 {[%clk 0:02:21.8]}
11... b5 {[%clk 0:02:01.2]} 12. a3 {[%clk 0:02:11.6]} 12... a5 {[%clk
0:02:00.5]} 13. Ng3 {[%clk 0:02:08.7]} 13... Bd7 {[%clk 0:01:56.8]} 14. b3
{[%clk 0:01:53.4]} 14... h5 {[%clk 0:01:49.2]} 15. f4 {[%clk 0:01:48.6]} 15...
Ng4 {[%clk 0:01:38.8]} 16. Be2 {[%clk 0:01:37.1]} 16... Be7 {[%clk 0:01:30.8]}
17. Nf5 {[%clk 0:01:25.3]} 17... Bf6 {[%clk 0:01:26.9]} 18. Bxg4 {[%clk
0:01:17.3]} 18... hxg4 {[%clk 0:01:26.3]} 19. fxe5 {[%clk 0:01:17.8]} 19... dxe5
{[%clk 0:01:14.5]} 20. g3 {[%clk 0:01:05.8]} 20... Ra7 {[%clk 0:01:06.9]} 21.
O-O {[%clk 0:01:02.9]} 21... b4 {[%clk 0:01:05.6]} 22. Bb2 {[%clk 0:00:54.7]}
22... O-O {[%clk 0:00:59.9]} 23. Ne3 {[%clk 0:00:39.5]} 23... a4 {[%clk
0:00:42.2]} 24. axb4 {[%clk 0:00:30.1]} 24... axb3 {[%clk 0:00:33.1]} 25. cxb3
{[%clk 0:00:10.2]} 25... cxb4 {[%clk 0:00:32.7]} 26. Kg2 {[%clk 0:00:08.2]}
26... Rfa8 {[%clk 0:00:28.4]} 27. Rac1 {[%clk 0:00:06.8]} 27... Qd6 {[%clk
0:00:25.6]} 28. Nc4 {[%clk 0:00:06.8]} 28... Qb8 {[%clk 0:00:22.2]} 29. Rxf6
{[%clk 0:00:06.3]} 29... gxf6 {[%clk 0:00:21.5]} 30. Rf1 {[%clk 0:00:06.9]}
30... Kg7 {[%clk 0:00:19.1]} 31. h5 {[%clk 0:00:04.1]} 31... Ra2 {[%clk
0:00:14.3]} 32. h6+ {[%clk 0:00:03.8]} 32... Kg6 {[%clk 0:00:13.2]} 33. Rf2
{[%clk 0:00:02.9]} 33... Qh8 {[%clk 0:00:12.6]} 34. Qxb4 {[%clk 0:00:02]} 34...
Qxh6 {[%clk 0:00:11.5]} 0-1